Cogmind - Beta 10.2 @@@ ROGUE MODE // 2021.01.31 @ 16:35:11 Player: TheGreatBorealis Result: Destroyed by L-31 Rogue with Katana Performance ------------- Evolutions (1) 500 Regions Visited (3) 600 Robots Destroyed (42) 210 Value Destroyed (1167) 1167 Prototype IDs (3) 60 Alien Tech Used (0) 0 Bonus (318) 318 TOTAL SCORE: 2855 Bonus ------- High Alert Combat Kills 138 Follower Combat Kills 193 Friendly Fire -13 Cogmind --------- Core Integrity 0/400 Matter 272/300 Energy 265/265 System Corruption 0% Temperature Cool (60) Movement Treading (160) Location -9/Storage Parts ------- > --- POWER (1) -------- Improved Ion Engine > --- PROPULSION (3) --- Light Treads Light Treads Light Treads > --- UTILITY (3) ------ Large Storage Unit Light Armor Plating Medium Armor Plating > --- WEAPON (2) ------- Small Laser Heavy Assault Rifle > --- INVENTORY (10) --- Improved Ion Engine Aluminum Leg Aluminum Leg Compact Wheel Improved Hover Unit Small Storage Unit Particle Cannon Grenade Launcher Rocket Launcher Peak State ------------ > --- POWER ------------ Light Ion Engine > --- PROPULSION ------- Light Treads Aluminum Leg Aluminum Leg > --- UTILITY ---------- Cooling System Small Storage Unit Improved Terrain Scanner > --- WEAPON ----------- Improved EM Shotgun Improved Medium Laser > --- INVENTORY -------- Ion Engine Light Treads Compact Wheel Compact Wheel Improved Hover Unit Grenade Launcher [Rating: 15] Favorites ----------- Power Improved Ion Engine Engine Improved Ion Engine Propulsion Light Treads Treads Light Treads Leg Aluminum Leg Utility Small Storage Unit Device Cooling System Storage Small Storage Unit Protection Light Armor Plating Weapon Light Assault Rifle Energy Gun Improved Medium Laser Energy Cannon Particle Cannon Ballistic Gun Light Assault Rifle Launcher Rocket Launcher Build | -11 -10 -9 -9 ------- Run | Scr Mat Mat Sto Slots Evolved 2 | . . 2 . Power . | . . . . Propulsion 1 | . . 1 . Utility 1 | . . 1 . Weapon . | . . . . Parts Attached 53 | . 4 5 44 Power 5 | . . . 5 Engine 5 | . . . 5 Core . | . . . . Reactor . | . . . . Propulsion 16 | . 2 1 13 Treads 10 | . . 1 9 Leg 6 | . 2 . 4 Wheel . | . . . . Hover . | . . . . Flight . | . . . . Utility 12 | . . 2 10 Device 7 | . . 2 5 Storage 2 | . . . 2 Processor . | . . . . Hackware . | . . . . Protection 3 | . . . 3 Artifact . | . . . . Weapon 20 | . 2 2 16 Energy Gun 11 | . 1 2 8 Energy Cannon 1 | . . . 1 Ballistic Gun 3 | . . . 3 Ballistic Cannon . | . . . . Launcher 5 | . 1 . 4 Special Weapon . | . . . . Impact Weapon . | . . . . Slashing Weapon . | . . . . Piercing Weapon . | . . . . Special Melee Weapon . | . . . . Unidentified Prototypes 1 | . . . 1 Parts Lost 22 | . . . 22 Power 4 | . . . 4 Propulsion 5 | . . . 5 Utility 6 | . . . 6 Weapon 7 | . . . 7 Highest Loss Streak 9 | . . . 9 Average Slot Usage (%) 87 | . 85 97 85 Engine 11 | . 14 11 10 Treads 16 | . . 11 19 Leg 12 | . 28 22 9 Device 8 | . . 19 7 Storage 13 | . 14 11 13 Protection 3 | . . . 4 Energy Gun 9 | . 4 12 9 Energy Cannon 1 | . . . 1 Ballistic Gun 8 | . 22 9 5 Launcher 2 | . 1 . 2 Naked Turns . | . . . . Heaviest Build 37 | 10 10 14 37 Greatest Support 60 | 20 20 20 60 Greatest Overweight (x) 4 | . . . 4 Average Overweight (x) . | . . . . Largest Inventory Capacity 12 | 6 6 6 12 Average Capacity 7 | 6 6 6 8 Most Carried 10 | 6 6 6 10 Average Carried 6 | 6 6 5 6 Final Capacity 10 | 6 6 6 10 Final Carried 9 | 6 6 6 9 Class Distribution -------------------- 53% | Scavenger-Mutant 46% | Mutant Dominant Class ---------------- Mutant | -10/Materials Mutant | -9/Materials Scavenger-Mutant | -9/Storage Resources | -11 -10 -9 -9 ----------- Run | Scr Mat Mat Sto Matter Collected 992 | 200 . 60 732 Remotely 12 | . . . 12 Salvage Created 1458 | . 152 60 1246 Parts 90 | . 13 3 74 Haulers Intercepted . | . . . . Recyclers Shooed 1 | . . . 1 Parts Field Recycled . | . . . . Retrieved Matter . | . . . . Parts Self-Destructed . | . . . . Prevented . | . . . . Kills | -11 -10 -9 -9 ------- Run | Scr Mat Mat Sto Combat Hostiles Destroyed 32 | . 5 1 26 Guns 13 | . . 1 12 Cannons 5 | . . . 5 AOE 14 | . 5 . 9 Classes Destroyed 9 | . 4 1 4 Worker 3 | . 2 . 1 Builder 1 | . . . 1 Recycler 5 | . . . 5 Watcher 1 | . 1 . . Swarmer 6 | . 3 . 3 Grunt 14 | . 2 . 12 Brawler 1 | . . . 1 Protector 1 | . . . 1 Sentry 10 | . . 1 9 Best Kill Streak 9 | . 8 1 9 Combat Bots Only 7 | . 3 1 7 Max Kills in Single Turn 3 | . 3 1 3 Gunslinging . | . . . . Exploded 2 | . 2 . 2 Melee . | . . . . Uniques/NPCs Destroyed . | . . . . Combat | -11 -10 -9 -9 -------- Run | Scr Mat Mat Sto Damage Taken 2767 | . 329 87 2351 Core 532 | . 110 14 408 Absorbed by Shields . | . . . . Core Remaining (%) 78 | 100 56 . . Volleys Fired 98 | . 10 6 82 Largest 2 | . 2 2 2 Hottest 124 | . 60 60 124 Shots Fired 175 | . 20 12 143 Gun 138 | . 17 12 109 Cannon 15 | . . . 15 Launcher 22 | . 3 . 19 Special . | . . . . Kinetic 48 | . 12 6 30 Thermal 76 | . . . 76 Explosive 22 | . 3 . 19 Electromagnetic 29 | . 5 6 18 Robot Hit Streak 14 | . 7 10 14 Robot Miss Streak 2 | . 2 1 2 Penetration Max . | . . . . Secondary Targets 4 | . . . 4 Max Gunslinging Chain 1 | . . . 1 Shots Hit Robots 131 | . 13 11 107 Core Hits 70 | . 9 3 58 Critical Hits . | . . . . Critical Kills . | . . . . Critical Parts Destroyed . | . . . . Melee Attacks . | . . . . Impact . | . . . . Slashing . | . . . . Piercing . | . . . . Sneak Attacks . | . . . . Combat Hostiles . | . . . . Follow-up Attacks . | . . . . Damage Inflicted 3086 | . 552 102 2432 Guns 1418 | . 95 102 1221 Cannons 266 | . . . 266 Explosions 1402 | . 457 . 945 Melee . | . . . . Ramming . | . . . . Kinetic 339 | . 43 36 260 Thermal 1194 | . 242 . 952 Explosive 1160 | . 215 . 945 Electromagnetic 393 | . 52 66 275 Impact . | . . . . Slashing . | . . . . Piercing . | . . . . Highest Corruption . | . . . . Average Corruption . | . . . . Corruption Purged . | . . . . Overload Shots . | . . . . Overflow Damage 103 | . 54 . 49 Projectiles . | . . . . Explosions 103 | . 54 . 49 Melee . | . . . . Knockbacks . | . . . . Impact . | . . . . Kinetic . | . . . . Secondary . | . . . . Self-Inflicted Damage 425 | . 186 . 239 Shots 15 | . 5 . 10 Rammed . | . . . . Targets Rammed . | . . . . Kicked . | . . . . Crushed . | . . . . Highest Temperature 435 | . 106 . 435 Average Temperature 111 | . 41 . 124 Received Heat Transfer 846 | . 54 36 756 Effects 4 | . . . 4 Shutdowns 2 | . . . 2 Short Circuit 2 | . . . 2 Siege Activations . | . . . . Robots Corrupted . | . . . . Combat Hostiles . | . . . . Parts Fried . | . . . . Impact Corruptions . | . . . . Robots Melted . | . . . . Combat Hostiles . | . . . . Parts Melted 2 | . . . 2 Heat Transferred 2184 | . 200 . 1984 Parts Sabotaged . | . . . . Parts Stolen . | . . . . Parts Stripped . | . . . . Power Chain Reactions 1 | . 1 . . Missiles Intercepted . | . . . . Alert | -11 -10 -9 -9 ------- Run | Scr Mat Mat Sto Peak Influence 672 | . 172 117 672 Initial 72 | . . 72 49 Average 352 | . 56 87 439 Maximum Alert Level 2 | . . . 2 Low Security (%) 30 | 100 100 100 9 Level 1 18 | . . . 24 Level 2 50 | . . . 66 Level 3 . | . . . . Level 4 . | . . . . Level 5 . | . . . . High Security . | . . . . Max Security . | . . . . Squads Dispatched 9 | . . . 9 Investigation . | . . . . Extermination . | . . . . Reinforcement 3 | . . . 3 Assault 3 | . . . 3 Garrison 3 | . . . 3 Intercept . | . . . . Construction Impeded 1 | . . . 1 Haulers Reinforced . | . . . . Stealth | -11 -10 -9 -9 --------- Run | Scr Mat Mat Sto Distress Signals 5 | . 2 . 3 Communications Jammed . | . . . . Distress Signals . | . . . . Times Spotted 52 | . 7 1 44 Peak Tracking Total 5 | . 4 1 5 Tactical Retreats 1 | . . . 1 Traps | -11 -10 -9 -9 ------- Run | Scr Mat Mat Sto Traps Triggered . | . . . . Indirectly . | . . . . Trap Hack Attempts . | . . . . Triggered . | . . . . Disarmed . | . . . . Reprogrammed . | . . . . Reused . | . . . . Traps Extracted . | . . . . Installed . | . . . . Triggered . | . . . . Machines | -11 -10 -9 -9 ---------- Run | Scr Mat Mat Sto Machines Disabled 4 | . 1 . 3 Max in Single Turn 1 | . 1 . 1 Machines Sabotaged . | . . . . Garrisons Compromised . | . . . . Overloaded Fab Kills . | . . . . Fab Network Shutdowns . | . . . . Hacking | -11 -10 -9 -9 --------- Run | Scr Mat Mat Sto Machines Accessed 5 | . 1 1 3 Terminals 4 | . 1 . 3 Fabricators . | . . . . Repair Stations . | . . . . Recycling Units . | . . . . Scanalyzers 1 | . . 1 . Garrison Access . | . . . . Total Hacks 15 | . 3 5 7 Successful 9 | . 2 4 3 Failed 6 | . 1 1 4 Catastrophic 2 | . . . 2 Database Lockouts . | . . . . Manual 4 | . 1 . 3 Terminals 10 | . 3 . 7 Fabricators . | . . . . Repair Stations . | . . . . Recycling Units . | . . . . Scanalyzers 5 | . . 5 . Garrison Access . | . . . . Terminal Hacks 5 | . 2 . 3 Part Schematic 1 | . . . 1 Prototype ID Bank 1 | . 1 . . Open Door 1 | . . . 1 Locate Traps 2 | . 1 . 1 Fabricator Hacks . | . . . . Repair Station Hacks . | . . . . Recycling Unit Hacks . | . . . . Scanalyzer 4 | . . 4 . Insert Component 2 | . . 2 . Analyze 2 | . . 2 . Garrison Access Hacks . | . . . . Unauthorized Hacks . | . . . . Terminals . | . . . . Fabricators . | . . . . Repair Stations . | . . . . Recycling Units . | . . . . Scanalyzers . | . . . . Garrison Access . | . . . . Data Cores Recovered . | . . . . Used . | . . . . Hacking Detections 5 | . 1 1 3 Full Trace Events . | . . . . Feedback Events . | . . . . Feedback Blocked . | . . . . Robot Schematics Acquired . | . . . . Robots Built . | . . . . Matter . | . . . . Time . | . . . . Total Robot Build Rating . | . . . . Part Schematics Acquired 3 | . . 2 1 Parts Built . | . . . . Matter . | . . . . Time . | . . . . Total Part Build Rating . | . . . . Parts Repaired . | . . . . Time . | . . . . Parts Recycled . | . . . . Recycled Matter . | . . . . Retrieved Matter . | . . . . Retrieved Components . | . . . . Parts Scanalyzed 2 | . . 2 . Part Schematics Acquired 2 | . . 2 . Parts Damaged . | . . . . Bothacking | -11 -10 -9 -9 ------------ Run | Scr Mat Mat Sto Used RIF Installer . | . . . . Robots Hacked . | . . . . Non-combat . | . . . . Combat . | . . . . Robot Hacks Applied . | . . . . Relay Couplers Released . | . . . . Robots Rewired . | . . . . Allies Hacked . | . . . . Hacks Repelled . | . . . . Allies | -11 -10 -9 -9 -------- Run | Scr Mat Mat Sto Total Allies 2 | . . . 2 Largest Group 2 | . . . 2 Highest-Rated Group 62 | . . . 62 Highest-Rated Ally 31 | . . . 31 Total Orders . | . . . . Ally Attacks 29 | . . . 29 Total Damage 507 | . . . 507 Kills 8 | . . . 8 Allies Corrupted . | . . . . Allies Melted . | . . . . Intel | -11 -10 -9 -9 ------- Run | Scr Mat Mat Sto Robot Analysis Total . | . . . . Derelict Logs Recovered . | . . . . Drone Launches . | . . . . Drone Recoveries . | . . . . Exploration | -11 -10 -9 -9 ------------- Run | Scr Mat Mat Sto Turns Passed 1185 | 3 131 145 906 Spaces Moved 531 | 3 71 94 363 Core 4 | . . . 4 Treads 211 | . . . 211 Legs 316 | 3 71 94 148 Wheels . | . . . . Hover . | . . . . Flight . | . . . . Fastest Speed 120 | 120 120 120 120 Average Speed 138 | 120 120 120 147 Slowest Speed 250 | 120 120 120 250 Overloaded Moves . | . . . . Propulsion Burnouts . | . . . . Robots Hopped . | . . . . Cave-ins Triggered . | . . . . Exploration Rate (%) 24 | 2 18 11 68 Regions Visited 3 Branch Regions 1 Pre-discovered Areas . | . . . . Known Exits Taken . | . . . . Unknown Exits Taken 3 | 1 1 1 . Scrap Searched . | . . . . Spaces Dug . | . . . . Terrain Destroyed 164 | . 47 . 117 Melee . | . . . . Projectile . | . . . . AOE 164 | . 47 . 117 Terrain Rammed . | . . . . Walls Destroyed . | . . . . Machines Disabled . | . . . . Actions | -11 -10 -9 -9 --------- Run | Scr Mat Mat Sto Total 802 | 2 99 115 586 Wait 90 | . 12 8 70 Move 528 | 2 70 93 363 Hop . | . . . . Pick Up 10 | . . 1 9 Fast Attach 24 | . 1 3 20 Attach 13 | . . 1 12 Detach 7 | . . . 7 Swap 16 | . 3 1 12 Drop 16 | . 3 2 11 Fire 98 | . 10 6 82 Melee . | . . . . Ram . | . . . . Kick . | . . . . Crush . | . . . . Escape Stasis . | . . . . Rewire . | . . . . Trap . | . . . . Miscellaneous . | . . . . Route ------- -11/Scrapyard -10/Materials -9/Materials -9/Storage (discovered 1 exit: [*Rec]) History --------- Turn | Location | Event 1 | -11/Scrapyard | Discovered new exit (range 3) 4 | -11/Scrapyard | Entered Materials 133 | -10/Materials | Discovered new exit (range 3) 135 | -10/Materials | Entered another Materials area 135 | -9/Materials | Evolved 2 slots: Propulsion x1, Utility x1 214 | -9/Materials | Discovered new exit (range 15) 280 | -9/Materials | Entered Storage 304 | -9/Storage | Met a pair of Derelict thieves 307 | -9/Storage | Build established: Mutant 356 | -9/Storage | Garrison activated, responded to threat 460 | -9/Storage | Destroyed 7 combat bots 495 | -9/Storage | Lost 9 parts (2p3n2u2w) 570 | -9/Storage | Core integrity fell below 50% 668 | -9/Storage | Lost 6 parts (1p1n2u2w) 680 | -9/Storage | Used back door to open Recycling access 680 | -9/Storage | Discovered new exit (range 5) 755 | -9/Storage | Lost 3 parts (1p1u1w) 1023 | -9/Storage | Core integrity fell below 20% 1061 | -9/Storage | Lost 3 parts (1n1u1w) 1077 | -9/Storage | Build established: Scavenger-Mutant 1080 | -9/Storage | First assault squad dispatched 1186 | -9/Storage | Destroyed by L-31 Rogue with Katana Last Messages --------------- 01052_ K-01 Serf collects debris. 01052_ Dropped Broken Lgt. Treads. 01055_ K-01 Serf collects debris. 01056_ Dropped Broken Heat Sink. 01057_ Acquired 12 matter. 01058_ Acquired 28 matter. 01058_ K-01 Serf collects debris. 01063_ Acquired Aluminum Leg. 01065_ K-01 Serf collects debris. 01080_ ALERT: Significant disruption in Zone 3H, assault force dispatched. 01126_ Acquired Med. Armor Plating. 01131_ Connecting with Door Terminal... 01137_ K-01 Serf cleans the Repair Station. 01147_ Connecting with Terminal... 01173_ C-30 ARC bursts open, deploying its payload. 01173_ G-47 Trooper unfolds itself. 01173_ B-36 Bruiser unfolds itself. 01173_ L-31 Rogue unfolds itself. 01173_ M-13 Machinist unfolds itself. 01183_ K-01 Serf collects debris. Map ----- +----------------------------------------------------+ | ???????????????????# #? | | ?#??????????????#### ! #? | | ????????????????# %= #? | | ????###?????????#=! !% %###### #? | | ????# ??? ?####[%*[ !#????## ##? | | ?#??# "?" + = #?????# #?? | | ????# """ ######## #??#### #?? | | ????? """ ????????## ##??#""" #?? | | ???#? ?????????# #???#"R #?? | | ?????? " "??????????# #???#""" #?? | | ?????? "R"??#########+#???#### #?? | | ??????? ""???# ==! #??????# #?? | | ##????? ???# =!! #??????# #?? | | #######+###+# =! #??????# #?? | | [ # #??????# #?? | | + #?###### #?? | | # #?#!!" # #?? | | ############## #?#! # #?? | | #?????????# #?#!!" + #?? | | [ #?????????###########?####T# #?? | | [ #????????????????????????### #?? | | #?????????????????????????# #?? | | ##????????????##########???# #?? | | #?????????????# #???# #?? | | #?????????????????" ##### ### | | ####?????????????????""""@lbglkm ""# | | ????????????????????????" ##### ""# | | ????????????????????????" #???# T"# | | ????????????????????????" #???# ""# | | ????????????????????????" #???# ""# | | ???????????????????????? #???# ### | | ???????????????????????? #???# #?? | | ????????????????????????###???# #?? | | ??????????????????????????????# #?? | | ??????????????????????????????# "?? | | ??????????????????????????????# Y?? | | ??????????????????????????????# "?? | | ??????????????????????????????# #?? | | ??????????????????????????????+ #?? | | ??????????????????????????????# #?? | | ??????????????????????????????# ??? | | ??????????????????????????????? ??? | | ????????????????????????????????????? | | ????????????????????????????????????? | | ????????????????????????????????????? | | ????????????????????????????????????? | | ????????????????????????????????????? | | ????????????????????????????????????? | | ????????????????????????????????????? | | ????????????????????????????????????? | +----------------------------------------------------+ Best States ------------- Heat Dissipation 50 Energy Generation 12 Energy Capacity 265 Matter Stores 400 Matter Capacity 400 Sight Range 16 Terrain Scan Range 16 Terrain Scan Density 10 Armor Coverage 375 Evasion (%) 40 Recoil Reduction 3 Item Schematics ----------------- Grenade Launcher | -9/Materials | Scanalyzed Imp. Hover Unit | -9/Materials | Scanalyzed Arm. Treads | -9/Storage | Hacked Robot Schematics ------------------ None Fabricated ------------ Nothing Alien Tech Used ----------------- None Achievements -------------- None Challenges ------------ None Game ------ Seed EnergyMakeshiftDetonator Manual? 0 Play Time 00:17:07 Cumulative 77.4 hours Start 2021.01.31 @ 16:17:09 End 2021.01.31 @ 16:35:11 Sessions 1 Manual Loads 0 Difficulty Rogue Special Mode None Game No. 146 Rogue 146 Adventurer 0 Explorer 0 Win Type - Total 0 Types 0/0/0/0/0/0/0/0/0 Lore% 52 Gallery% 56 Achievement% 42 Wizard Run 0 Options --------- ASCII 0 Keyboard 1 Movement Numpad Keybinds 0 Fullscreen 2 Font 18/Terminus Map View 76x50 Tactical HUD 1 Map Filters NONE Filters NONE Steam 1 RUN: 4ae6b1e0-91f2-4db8-a207-7365ff7e2b2a